fUSD/lending_fUSD_20240109
["ID","MTS","AMOUNT","RATE_DAILY","PERIOD"]
[310931204,1704822707924,-678.56,0.0004126,30]
[310931205,1704822707933,-500.0,0.0004126,30]
[310931206,1704822707942,-500.0,0.0004126,30]
[310931207,1704822707952,-500.0,0.0004126,30]
[310931208,1704822707961,-500.0,0.0004126,30]
[310931209,1704822707970,-1183.13,0.0004126,30]
[310931210,1704822707980,-500.0,0.0004126,2]
[310931211,1704822707990,-518.49070697,0.0004126,30]
[310931212,1704822707999,-500.0,0.0004126,30]
[310931213,1704822708009,-500.0,0.0004126,30]
[310931214,1704822708019,-500.0,0.0004126,30]
[310931215,1704822708029,-500.0,0.0004126,30]
[310931216,1704822708039,-500.0,0.0004126,30]
[310931217,1704822708049,-315.70807966,0.0004126,30]
[310931218,1704822708059,-500.0,0.0004126,30]
[310931219,1704822708069,-500.0,0.0004126,30]
[310931220,1704822708080,-500.0,0.0004126,30]
[310931221,1704822708090,-500.0,0.0004126,30]
[310931222,1704822708100,-500.0,0.0004126,30]
[310931223,1704822708109,-500.0,0.0004126,30]
[310931224,1704822708119,-500.0,0.0004126,30]
[310931225,1704822708328,-500.0,0.0004126,30]
[310931226,1704822708338,-500.0,0.0004126,30]
[310931227,1704822708348,-500.0,0.0004126,30]
[310931228,1704822708358,-500.0,0.0004126,30]
[310931229,1704822708367,-165.29943097,0.0004126,30]
[310931230,1704822708377,-500.0,0.0004126,30]
[310931231,1704822708387,-500.0,0.0004126,30]
[310931232,1704822708397,-500.0,0.0004126,30]
[310931233,1704822708406,-500.0,0.0004126,30]
[310931234,1704822708415,-848.16,0.0004126,30]
[310931235,1704822708425,-159.31480795,0.0004126,30]
[310931236,1704822708434,-996.71,0.0004126,30]
[310931237,1704822708444,-582.4,0.0004126,30]
[310931238,1704822708453,-503.74574118,0.0004126,30]
[310931239,1704822708463,-500.0,0.0004126,30]
[310931240,1704822708472,-500.0,0.0004126,30]
[310931241,1704822708484,-500.0,0.0004126,30]
[310931242,1704822708494,-500.0,0.0004126,30]
[310931243,1704822708504,-500.0,0.0004126,30]
[310931244,1704822708513,-500.0,0.0004126,30]
[310931245,1704822708522,-500.0,0.0004126,30]
[310931246,1704822708532,-500.0,0.0004126,30]
[310931247,1704822708541,-500.0,0.0004126,30]
[310931248,1704822708551,-500.0,0.0004126,30]
[310931249,1704822708560,-763.12,0.0004126,30]
[310931250,1704822708569,-500.0,0.0004126,30]
[310931251,1704822708579,-500.0,0.0004126,30]
[310931252,1704822708589,-500.0,0.0004126,30]
[310931253,1704822708599,-500.0,0.0004126,30]
[310931254,1704822708608,-500.0,0.0004126,30]
[310931255,1704822708618,-629.14,0.0004126,2]
[310931256,1704822708627,-500.0,0.0004126,30]
[310931257,1704822708636,-500.0,0.0004126,30]
[310931258,1704822708646,-500.0,0.0004126,30]
[310931259,1704822708655,-500.0,0.0004126,30]
[310931260,1704822708664,-500.0,0.0004126,30]
[310931261,1704822708674,-512.12115089,0.0004126,30]
[310931262,1704822708683,-500.0,0.0004126,30]
[310931263,1704822708693,-500.0,0.0004126,30]
[310931264,1704822708702,-547.50524402,0.0004126,30]
[310931265,1704822708712,-668.65,0.0004126,30]
[310931266,1704822708722,-823.05,0.0004126,30]
[310931267,1704822708731,-500.0,0.0004126,30]
[310931268,1704822708741,-500.0,0.0004126,30]
[310931269,1704822708750,-500.0,0.0004126,30]
[310931270,1704822708760,-500.0,0.0004126,30]
[310931271,1704822708769,-500.0,0.0004126,30]
[310931272,1704822708779,-500.0,0.0004126,30]
[310931273,1704822708788,-500.0,0.0004126,30]
[310931274,1704822708798,-500.0,0.0004126,30]
[310931275,1704822708807,-500.0,0.0004126,30]
[310931276,1704822708816,-500.0,0.0004126,30]
[310931277,1704822708826,-500.0,0.0004126,30]
[310931278,1704822708835,-723.9,0.0004126,30]
[310931279,1704822708845,-782.81,0.0004126,30]
[310931280,1704822708855,-500.0,0.0004126,30]
[310931281,1704822708865,-500.0,0.0004126,30]
[310931282,1704822708874,-500.0,0.0004126,30]
[310931283,1704822708883,-500.0,0.0004126,30]
[310931284,1704822708893,-969.63,0.0004126,30]
[310931285,1704822708902,-500.0,0.0004126,30]
[310931286,1704822708911,-408.33,0.0004126,30]
[310931287,1704822708921,-500.0,0.0004126,30]
[310931288,1704822708930,-566.95,0.0004126,30]
[310931289,1704822708940,-500.0,0.0004126,30]
[310931290,1704822708949,-500.0,0.0004126,30]
[310931291,1704822708959,-500.0,0.0004126,30]
[310931292,1704822708970,-500.0,0.0004126,30]
[310931293,1704822708979,-500.0,0.0004126,30]
[310931294,1704822708989,-500.0,0.0004126,30]
[310931295,1704822708998,-500.0,0.0004126,30]
[310931296,1704822709008,-500.0,0.0004126,30]
[310931297,1704822709017,-623.06,0.0004126,30]
[310931298,1704822709027,-500.0,0.0004126,30]
[310931299,1704822709037,-500.0,0.0004126,30]
[310931300,1704822709047,-516.99,0.0004126,30]
[310931301,1704822709056,-500.0,0.0004126,30]
[310931302,1704822709065,-500.0,0.0004126,30]
[310931303,1704822709075,-500.0,0.0004126,30]
[310931304,1704822709085,-500.0,0.0004126,30]
[310931305,1704822709096,-702.04,0.0004126,30]
[310931306,1704822709106,-500.0,0.0004126,30]
[310931307,1704822709117,-500.0,0.0004126,30]
[310931308,1704822709128,-500.0,0.0004126,30]
[310931309,1704822709140,-598.3823678,0.0004126,30]
[310931310,1704822709151,-500.0,0.0004126,30]
[310931311,1704822709161,-600.25956024,0.0004126,30]
[310931312,1704822709171,-716.56,0.0004126,30]
[310931313,1704822709181,-500.0,0.0004126,30]
[310931314,1704822709191,-500.0,0.0004126,15]
[310931315,1704822709201,-748.95,0.0004126,30]
[310931316,1704822709212,-500.0,0.0004126,30]
[310931317,1704822709223,-530.23908022,0.0004126,30]
[310931318,1704822709233,-500.0,0.0004126,30]
[310931319,1704822709243,-500.0,0.0004126,30]
[310931320,1704822709253,-500.0,0.0004126,30]
[310931321,1704822709263,-500.0,0.0004126,30]
[310931322,1704822709272,-500.0,0.0004126,30]
[310931323,1704822709282,-672.74,0.0004126,30]
[310931324,1704822709292,-500.0,0.0004126,30]
[310931325,1704822709301,-500.0,0.0004126,30]
[310931326,1704822709311,-500.0,0.0004126,30]
[310931327,1704822709320,-500.0,0.0004126,30]
[310931328,1704822709329,-500.0,0.0004126,30]
[310931329,1704822709338,-647.35,0.0004126,30]
[310931330,1704822709348,-500.0,0.0004126,30]
[310931331,1704822709357,-685.1,0.0004126,30]
[310931332,1704822709366,-500.0,0.0004126,30]
[310931333,1704822709376,-500.0,0.0004126,30]
[310931334,1704822709385,-1120.19,0.0004126,30]
[310931335,1704822709394,-500.0,0.0004126,30]
[310931336,1704822709403,-500.0,0.0004126,30]
[310931337,1704822709412,-528.918398,0.0004126,30]
[310931338,1704822709422,-500.0,0.0004126,30]
[310931339,1704822709431,-500.0,0.0004126,30]
[310931340,1704822709440,-500.0,0.0004126,30]
[310931341,1704822709450,-500.0,0.0004126,30]
[310931342,1704822709459,-500.0,0.0004126,30]
[310931343,1704822709470,-500.0,0.0004126,30]
[310931344,1704822709480,-500.0,0.0004126,30]
[310931345,1704822709494,-500.0,0.0004126,30]
[310931346,1704822709503,-500.0,0.0004126,30]
[310931347,1704822709513,-500.0,0.0004126,30]
[310931348,1704822709522,-526.52786856,0.0004126,30]
[310931349,1704822709532,-500.0,0.0004126,30]
[310931350,1704822709541,-500.0,0.0004126,30]
[310931351,1704822709551,-647.58,0.0004126,30]
[310931352,1704822709560,-5000.0,0.0004126,30]
[310931353,1704822709569,-521.8194419,0.0004126,30]
[310931354,1704822709580,-500.0,0.0004126,30]
[310931355,1704822709589,-500.0,0.0004126,30]
[310931356,1704822709599,-500.0,0.0004126,30]
[310931357,1704822709608,-500.0,0.0004126,30]
[310931358,1704822709617,-500.0,0.0004126,30]
[310931359,1704822709627,-500.0,0.0004126,30]
[310931360,1704822709636,-500.0,0.0004126,30]
[310931361,1704822709645,-500.0,0.0004126,30]
[310931362,1704822709655,-558.85,0.0004126,30]
[310931363,1704822709664,-742.86,0.0004126,30]
[310931364,1704822709674,-500.0,0.0004126,30]
[310931365,1704822709684,-501.85605925,0.0004126,30]
[310931366,1704822709693,-581.63,0.0004126,30]
[310931367,1704822709703,-500.0,0.0004126,30]
[310931368,1704822709712,-460.27474541,0.0004126,30]
[310931369,1704822709726,-500.0,0.0004126,30]
[310931370,1704822709736,-500.0,0.0004126,30]
[310931371,1704822709747,-807.83,0.0004126,30]
[310931372,1704822709756,-500.0,0.0004126,30]
[310931373,1704822709766,-343.78937351,0.0004126,30]
[310931374,1704822709776,-500.0,0.0004126,30]
[310931375,1704822709785,-500.0,0.0004126,30]
[310931376,1704822709795,-619.91293524,0.0004126,30]
[310931377,1704822709805,-500.0,0.0004126,30]
[310931378,1704822709815,-500.0,0.0004126,30]
[310931379,1704822709825,-500.0,0.0004126,30]
[310931380,1704822709835,-500.0,0.0004126,30]
[310931381,1704822709845,-500.0,0.0004126,30]
[310931382,1704822709855,-353.76040814,0.0004126,30]
[310931383,1704822709865,-500.0,0.0004126,30]
[310931384,1704822709874,-500.0,0.0004126,30]
[310931385,1704822709883,-500.0,0.0004126,30]
[310931386,1704822709892,-517.95,0.0004126,30]
[310931387,1704822709902,-500.0,0.0004126,30]
[310931388,1704822709910,-517.60153342,0.0004126,30]
[310931389,1704822709920,-500.0,0.0004126,30]
[310931390,1704822709929,-500.0,0.0004126,30]
[310931391,1704822709939,-632.05,0.0004126,30]
[310931392,1704822709948,-500.0,0.0004126,30]
[310931393,1704822709958,-507.48747758,0.0004126,30]
[310931394,1704822709969,-500.0,0.0004126,30]
[310931395,1704822709979,-500.0,0.0004126,30]
[310931396,1704822709989,-500.0,0.0004126,30]
[310931397,1704822709998,-500.0,0.0004126,30]
[310931398,1704822710008,-500.0,0.0004126,30]
[310931399,1704822710017,-500.0,0.0004126,30]
[310931400,1704822710027,-500.0,0.0004126,30]
[310931401,1704822710036,-500.0,0.0004126,30]
[310931402,1704822710046,-654.13,0.0004126,30]
[310931403,1704822710055,-899.39,0.0004126,30]
[310931404,1704822710065,-500.0,0.0004126,30]
[310931405,1704822710074,-500.0,0.0004126,30]
[310931406,1704822710084,-500.0,0.0004126,30]
[310931407,1704822710094,-537.47,0.0004126,30]
[310931408,1704822710104,-500.0,0.0004126,30]
[310931409,1704822710114,-500.0,0.0004126,30]
[310931410,1704822710124,-271.89842289,0.0004126,30]
[310931411,1704822710133,-500.0,0.0004126,30]
[310931412,1704822710142,-680.46,0.0004126,30]
[310931413,1704822710152,-500.0,0.0004126,30]
[310931414,1704822710161,-797.4,0.0004126,30]
[310931415,1704822710171,-500.0,0.0004126,7]
[310931416,1704822710181,-1018.51,0.0004126,30]
[310931417,1704822710190,-500.0,0.0004126,30]
[310931418,1704822710200,-856.07,0.0004126,30]
[310931419,1704822710210,-500.0,0.0004126,30]
[310931420,1704822710221,-500.0,0.0004126,30]
[310931421,1704822710232,-500.0,0.0004126,30]
[310931422,1704822710242,-305.89750225,0.0004126,4]
[310931423,1704822710252,-500.0,0.0004126,30]
[310931424,1704822710262,-604.83207,0.0004126,30]
[310931425,1704822710273,-287.52555512,0.0004126,30]
[310931426,1704822710284,-500.0,0.0004126,30]
[310931427,1704822710294,-1130.34,0.0004126,30]
[310931428,1704822710304,-500.0,0.0004126,30]
[310931429,1704822710314,-593.8,0.0004126,30]
[310931430,1704822710324,-500.0,0.0004126,30]
[310931431,1704822710334,-952.27,0.0004126,30]
[310931432,1704822710344,-511.72,0.0004126,30]
[310931433,1704822710354,-500.0,0.0004126,30]
[310931434,1704822710364,-528.56,0.0004126,30]
[310931435,1704822710374,-500.0,0.0004126,30]
[310931436,1704822710385,-500.0,0.0004126,30]
[310931437,1704822710395,-691.64,0.0004126,30]
[310931438,1704822710406,-500.0,0.0004126,30]
[310931439,1704822710416,-291.75049159,0.0004126,30]
[310931440,1704822710426,-500.0,0.0004126,30]
[310931441,1704822710436,-527.87337693,0.0004126,30]
[310931442,1704822710534,-500.0,0.0004126,30]
[310931443,1704822710545,-500.0,0.0004126,30]
[310931444,1704822710555,-1470.07,0.0004126,30]
[310931445,1704822710565,-500.0,0.0004126,30]
[310931446,1704822710575,-834.95,0.0004126,30]
[310931447,1704822710586,-515.97600788,0.0004126,30]
[310931448,1704822710596,-500.0,0.0004126,30]
[310931449,1704822710605,-603.81,0.0004126,30]
[310931450,1704822710615,-500.0,0.0004126,30]
[310931451,1704822710625,-500.0,0.0004126,30]
[310931452,1704822710635,-491.38777587,0.0004126,30]
[310931453,1704822710644,-507.35835661,0.0004126,30]
[310931454,1704822710655,-500.0,0.0004126,30]
[310931455,1704822710664,-3062.67,0.0004126,30]
[310931456,1704822710675,-637.53,0.0004126,30]
[310931457,1704822710685,-500.0,0.0004126,30]
[310931458,1704822710695,-500.0,0.0004126,30]
[310931459,1704822710705,-500.0,0.0004126,30]
[310931460,1704822710717,-500.0,0.0004126,30]
[310931461,1704822710726,-500.0,0.0004126,30]
[310931462,1704822710737,-500.0,0.0004126,30]
[310931463,1704822710748,-500.0,0.0004126,30]
[310931464,1704822710758,-500.0,0.0004126,30]
[310931465,1704822710768,-500.0,0.0004126,30]
[310931466,1704822710778,-500.0,0.0004126,30]
[310931467,1704822710789,-951.54,0.0004126,30]
[310931468,1704822710799,-500.0,0.0004126,30]
[310931469,1704822710809,-1554.84,0.0004126,30]
[310931470,1704822710819,-588.85450169,0.0004126,30]
[310931471,1704822710829,-783.64,0.0004126,30]
[310931472,1704822710839,-500.0,0.0004126,30]
[310931473,1704822710850,-500.0,0.0004126,30]
[310931474,1704822710860,-373.83099565,0.0004126,30]
[310931475,1704822710870,-500.0,0.0004126,30]
[310931476,1704822710880,-500.0,0.0004126,30]
[310931477,1704822710890,-500.0,0.0004126,30]
[310931478,1704822710900,-500.0,0.0004126,30]
[310931479,1704822710910,-1000.0,0.0004126,2]
[310931480,1704822710920,-955.99,0.0004126,30]
[310931481,1704822710930,-500.0,0.0004126,30]
[310931482,1704822710940,-584.0,0.0004126,30]
[310931483,1704822710950,-500.0,0.0004126,30]
[310931484,1704822710960,-500.0,0.0004126,30]
[310931485,1704822710972,-500.0,0.0004126,30]
[310931486,1704822710982,-500.0,0.0004126,30]
[310931487,1704822710992,-287.3895773,0.0004126,30]
[310931488,1704822711003,-742.2,0.0004126,30]
[310931489,1704822711014,-667.03,0.0004126,30]
[310931490,1704822711024,-500.0,0.0004126,30]
[310931491,1704822711033,-500.0,0.0004126,30]
[310931492,1704822711044,-500.0,0.0004126,30]
[310931493,1704822711054,-1579.23,0.0004126,30]
[310931494,1704822711063,-500.0,0.0004126,30]
[310931495,1704822711073,-500.0,0.0004126,30]
[310931496,1704822711083,-1683.26,0.0004126,30]
[310931497,1704822711093,-322.59909597,0.0004126,30]
[310931498,1704822711104,-500.0,0.0004126,30]
[310931499,1704822711114,-500.0,0.0004126,30]
[310931500,1704822711124,-587.56958637,0.0004126,30]
[310931501,1704822711133,-509.30808084,0.0004126,30]
[310931502,1704822711144,-500.0,0.0004126,30]
[310931503,1704822711154,-732.8,0.0004126,30]
[310931504,1704822711164,-500.0,0.0004126,30]
[310931505,1704822711174,-500.0,0.0004126,30]
[310931506,1704822711184,-500.0,0.0004126,30]
[310931507,1704822711194,-500.0,0.0004126,30]
[310931508,1704822711204,-1701.57,0.0004126,30]
[310931509,1704822711214,-609.24,0.0004126,30]
[310931510,1704822711225,-493.02741681,0.0004126,30]
[310931511,1704822711236,-995.31,0.0004126,30]
[310931512,1704822711246,-500.0,0.0004126,30]
[310931513,1704822711256,-500.0,0.0004126,30]
[310931514,1704822711266,-500.0,0.0004126,30]
[310931515,1704822711277,-500.0,0.0004126,30]
[310931516,1704822711287,-546.32,0.0004126,30]
[310931517,1704822711297,-1289.05,0.0004126,30]
[310931518,1704822711307,-1075.03,0.0004126,30]
[310931519,1704822711317,-500.0,0.0004126,30]
[310931520,1704822711330,-500.0,0.0004126,30]
[310931521,1704822711340,-612.38,0.0004126,30]
[310931522,1704822711350,-1605.53,0.0004126,30]
[310931523,1704822711361,-500.0,0.0004126,30]
[310931524,1704822711371,-1111.16,0.0004126,30]
[310931525,1704822711381,-500.0,0.0004126,30]
[310931526,1704822711392,-746.35,0.0004126,30]
[310931527,1704822711402,-1189.53,0.0004126,30]
[310931528,1704822711413,-500.0,0.0004126,30]
[310931529,1704822711424,-510.24341093,0.0004126,30]
[310931530,1704822711435,-500.0,0.0004126,30]
[310931531,1704822711445,-194.46207408,0.0004126,30]
[310931532,1704822711455,-500.0,0.0004126,30]
[310931533,1704822711466,-566.22,0.0004126,30]
[310931534,1704822711477,-927.99,0.0004126,30]
[310931535,1704822711489,-1587.98,0.0004126,30]
[310931536,1704822711499,-500.0,0.0004126,30]
[310931537,1704822711509,-500.0,0.0004126,30]
[310931538,1704822711520,-665.79,0.0004126,30]
[310931539,1704822711529,-401.18565492,0.0004126,30]
[310931540,1704822711538,-1083.99,0.0004126,30]
[310931541,1704822711549,-1352.1,0.0004126,30]
[310931542,1704822711559,-500.0,0.0004126,30]
[310931543,1704822711570,-500.0,0.0004126,30]
[310931544,1704822711581,-500.0,0.0004126,30]
[310931545,1704822711592,-500.0,0.0004126,30]
[310931546,1704822711603,-657.61,0.0004126,30]
[310931547,1704822711613,-831.46,0.0004126,30]
[310931548,1704822711623,-876.27,0.0004126,30]
[310931549,1704822711633,-1165.49,0.0004126,30]
[310931550,1704822711643,-1499.79,0.0004126,30]
[310931551,1704822711653,-500.0,0.0004126,30]
[310931552,1704822711663,-500.0,0.0004126,30]
[310931553,1704822711674,-1224.45,0.0004126,30]
[310931554,1704822711683,-529.72438464,0.0004126,30]
[310931555,1704822711693,-585.09,0.0004126,30]
[310931556,1704822711703,-500.0,0.0004126,30]
[310931557,1704822711712,-1187.3,0.0004126,30]
[310931558,1704822711724,-1165.31,0.0004126,30]
[310931559,1704822711733,-500.0,0.0004126,30]
[310931560,1704822711742,-500.0,0.0004126,30]
[310931561,1704822711753,-1451.41,0.0004126,30]
[310931562,1704822711763,-1109.01,0.0004126,30]
[310931563,1704822711772,-500.0,0.0004126,30]
[310931564,1704822711782,-500.0,0.0004126,30]
[310931565,1704822711791,-500.0,0.0004126,30]
[310931566,1704822711801,-500.0,0.0004126,30]
[310931567,1704822711810,-1030.53,0.0004126,30]
[310931568,1704822711820,-1058.21,0.0004126,30]
[310931569,1704822711829,-713.27,0.0004126,30]
[310931570,1704822711839,-500.0,0.0004126,30]
[310931571,1704822711849,-561.82630955,0.0004126,30]
[310931572,1704822711859,-1268.66,0.0004126,30]
[310931573,1704822711869,-500.0,0.0004126,30]
[310931574,1704822711879,-2171.66,0.0004126,30]
[310931575,1704822711889,-657.69,0.0004126,30]
[310931576,1704822711898,-300.0,0.0004126,30]
[310931577,1704822711907,-698.65,0.0004126,30]
[310931578,1704822711917,-816.63,0.0004126,5]
[310931579,1704822711926,-835.19,0.0004126,30]
[310931580,1704822711935,-500.0,0.0004126,30]
[310931581,1704822711945,-500.0,0.0004126,30]
[310931582,1704822711955,-500.0,0.0004126,30]
[310931583,1704822711965,-500.0,0.0004126,30]
[310931584,1704822711975,-617.92,0.0004126,30]
[310931585,1704822711984,-500.0,0.0004126,30]
[310931586,1704822711994,-3829.67,0.0004126,30]
[310931587,1704822712004,-1000.0,0.0004126,2]
[310931588,1704822712013,-500.0,0.0004126,2]
[310931589,1704822712022,-653.11,0.0004126,30]
[310931590,1704822712032,-500.0,0.0004126,30]
[310931591,1704822712041,-500.0,0.0004126,30]
[310931592,1704822712051,-420.17570717,0.0004126,30]
[310931593,1704822712060,-1196.79,0.0004126,30]
[310931594,1704822712070,-500.0,0.0004126,30]
[310931595,1704822712080,-500.0,0.0004126,30]
[310931596,1704822712090,-500.0,0.0004126,30]
[310931597,1704822712099,-924.68,0.0004126,30]
[310931598,1704822712109,-1534.65,0.0004126,30]
[310931599,1704822712120,-1071.73,0.0004126,30]
[310931600,1704822712130,-500.0,0.0004126,30]
[310931601,1704822712140,-500.0,0.0004126,30]
[310931602,1704822712149,-910.34,0.0004126,30]
[310931603,1704822712159,-563.27,0.0004126,30]
[310931604,1704822712168,-2625.83,0.0004126,30]
[310931605,1704822712177,-1003.2,0.0004126,30]
[310931606,1704822712187,-500.0,0.0004126,30]
[310931607,1704822712197,-1069.06,0.0004126,30]
[310931608,1704822712207,-693.77,0.0004126,30]
[310931609,1704822712217,-500.0,0.0004126,30]
[310931610,1704822712227,-365.79072861,0.0004126,30]
[310931611,1704822712236,-3778.52,0.0004126,30]
[310931612,1704822712246,-3358.65,0.0004126,30]
[310931613,1704822712255,-775.18,0.0004126,30]
[310931614,1704822712265,-500.0,0.0004126,30]
[310931615,1704822712275,-500.0,0.0004126,30]
[310931616,1704822712284,-1018.17,0.0004126,30]
[310931617,1704822712293,-500.0,0.0004126,30]
[310931618,1704822712302,-627.54,0.0004126,30]
[310931619,1704822712312,-1597.58,0.0004126,30]
[310931620,1704822712321,-680.27,0.0004126,30]
[310931621,1704822712331,-1108.25,0.0004126,30]
[310931622,1704822712340,-840.77,0.0004126,30]
[310931623,1704822712351,-680.58,0.0004126,30]
[310931624,1704822712360,-500.0,0.0004126,30]
[310931625,1704822712369,-500.0,0.0004126,30]
[310931626,1704822712379,-500.0,0.0004126,30]
[310931627,1704822712389,-1688.18,0.0004126,30]
[310931628,1704822712398,-500.0,0.0004126,30]
[310931629,1704822712407,-500.0,0.0004126,30]
[310931630,1704822712417,-764.23,0.0004126,30]
[310931631,1704822712426,-500.0,0.0004126,30]
[310931632,1704822712435,-500.0,0.0004126,30]
[310931633,1704822712445,-500.0,0.0004126,30]
[310931634,1704822712454,-500.0,0.0004126,30]
[310931635,1704822712463,-500.0,0.0004126,30]
[310931636,1704822712473,-1292.97,0.0004126,30]
[310931637,1704822712485,-2704.06,0.0004126,30]
[310931638,1704822712495,-689.03,0.0004126,30]
[310931639,1704822712504,-897.63,0.0004126,30]
[310931640,1704822712513,-1997.42,0.0004126,30]
[310931641,1704822712523,-753.25,0.0004126,30]
[310931642,1704822712532,-863.4,0.0004126,30]
[310931643,1704822712541,-500.0,0.0004126,30]
[310931644,1704822712550,-500.0,0.0004126,30]
[310931645,1704822712560,-1538.51,0.0004126,30]
[310931646,1704822712569,-1469.75,0.0004126,30]
[310931647,1704822712579,-496.08062696,0.0004126,30]
[310931648,1704822712588,-500.0,0.0004126,30]
[310931649,1704822712597,-500.0,0.0004126,30]
[310931650,1704822712607,-744.34,0.0004126,30]
[310931651,1704822712617,-500.0,0.0004126,30]
[310931652,1704822712626,-500.0,0.0004126,30]
[310931653,1704822712636,-1416.77,0.0004126,30]
[310931654,1704822712646,-544.19,0.0004126,30]
[310931655,1704822712656,-1752.19,0.0004126,30]
[310931656,1704822712665,-500.0,0.0004126,10]
[310931657,1704822712675,-500.0,0.0004126,30]
[310931658,1704822712684,-500.0,0.0004126,30]
[310931659,1704822712693,-992.88,0.0004126,30]
[310931660,1704822712703,-907.17,0.0004126,30]
[310931661,1704822712712,-820.02,0.0004126,30]
[310931662,1704822712723,-507.74689767,0.0004126,30]
[310931663,1704822712732,-696.79,0.0004126,30]
[310931664,1704822712741,-830.16,0.0004126,30]
[310931665,1704822712751,-1042.21,0.0004126,30]
[310931666,1704822712760,-500.0,0.0004126,30]
[310931667,1704822712769,-921.85,0.0004126,30]
[310931668,1704822712779,-500.0,0.0004126,30]
[310931669,1704822712789,-508.27470667,0.0004126,30]
[310931670,1704822712798,-500.0,0.0004126,30]
[310931671,1704822712807,-936.43,0.0004126,30]
[310931672,1704822712816,-500.0,0.0004126,30]
[310931673,1704822712825,-500.0,0.0004126,30]
[310931674,1704822712834,-500.0,0.0004126,30]
[310931675,1704822712843,-500.0,0.0004126,30]
[310931676,1704822712853,-500.0,0.0004126,30]
[310931677,1704822712862,-500.0,0.0004126,30]
[310931678,1704822712871,-500.0,0.0004126,30]
[310931679,1704822712880,-3608.68,0.0004126,30]
[310931680,1704822712890,-500.0,0.0004126,30]
[310931681,1704822712900,-1062.16,0.0004126,30]
[310931682,1704822712909,-500.0,0.0004126,30]
[310931683,1704822712918,-393.90483487,0.0004126,30]
[310931684,1704822712928,-797.98,0.0004126,30]
[310931685,1704822712937,-848.43,0.0004126,30]
[310931686,1704822712947,-594.13,0.0004126,30]
[310931687,1704822712956,-500.0,0.0004126,30]
[310931688,1704822712966,-543.9,0.0004126,30]
[310931689,1704822712975,-500.0,0.0004126,30]
[310931690,1704822712985,-500.0,0.0004126,30]
[310931691,1704822712994,-500.0,0.0004126,30]
[310931692,1704822713003,-765.38,0.0004126,30]
[310931693,1704822713013,-1432.21,0.0004126,30]
[310931694,1704822713022,-500.0,0.0004126,30]
[310931695,1704822713032,-1359.32,0.0004126,30]
[310931696,1704822713041,-527.67695464,0.0004126,30]
[310931697,1704822713051,-500.0,0.0004126,30]
[310931698,1704822713062,-500.0,0.0004126,30]
[310931699,1704822713071,-1854.87,0.0004126,30]
[310931700,1704822713081,-720.0,0.0004126,30]
[310931701,1704822713091,-1281.62,0.0004126,30]
[310931702,1704822713102,-558.71,0.0004126,30]
[310931703,1704822713111,-1462.19,0.0004126,30]